bitfinex/quotes_SOLUSD_20240813
["timestamp","ask_amount","ask_price","bid_price","bid_amount"]
[1723519976751,20.0,144.23,144.17,13.872]
[1723519977073,33.8654,144.25,144.17,13.872]
[1723519977276,5.5478,144.21,144.17,19.4208]
[1723519977568,5.5471,144.22,144.17,19.4208]
[1723519978077,5.5478,144.21,144.17,13.872]
[1723519978285,5.5478,144.2,144.17,13.872]
[1723519978443,0.12549,144.23,144.14,19.4246]
[1723519978646,5.5479,144.2,144.16,5.5493]
[1723519979248,5.5477,144.21,144.16,5.5493]
[1723519979569,5.5478,144.2,144.15,5.5496]
[1723519980074,257.4,144.26,144.15,22.0199]
[1723519980309,13.8662,144.24,144.15,22.0199]
[1723519980448,5.5479,144.2,144.15,22.0199]
[1723519980648,5.5479,144.2,144.16,19.4219]
[1723519980842,15.14083935,144.24,144.15,22.0199]
[1723519980843,21.27463935,144.23,144.15,22.0199]
[1723519981070,5.5487,144.18,144.15,22.0199]
[1723519981378,1.27463935,144.17,144.15,22.0199]
[1723519981552,5.5487,144.18,144.15,22.0199]
[1723519981750,5.5483,144.19,144.15,22.0199]
[1723519982147,5.5486,144.18,144.15,22.0199]
[1723519982350,6.82363935,144.17,144.15,15.4105]
[1723519982576,5.5487,144.18,144.15,15.4105]
[1723519982980,5.5483,144.19,144.15,15.4105]
[1723519983200,5.5486,144.18,144.15,15.4105]
[1723519983679,20.25098,144.21,144.13,13.8758]
[1723519983978,0.12549,144.19,144.12,0.8292731]
[1723519984185,0.25098,144.19,144.12,0.8292731]
[1723519985386,5.5487,144.18,144.13,5.5502]
[1723519985600,5.67369,144.19,144.14,5.55]
[1723519985781,5.5505,144.14,144.12,0.8292731]
[1723519985958,5.5495,144.16,144.12,0.8292731]
[1723519986325,1.27463935,144.17,144.12,0.8292731]
[1723519986326,5.55,144.15,144.12,0.8292731]
[1723519989580,53.9709,144.19,144.12,0.8292731]
[1723519989860,20.0,144.18,144.14,5.55]
[1723519990270,5.5479,144.2,144.15,5.5494]
[1723519990584,76.33489749,144.25,144.14,13.875]
[1723519990788,5.5483,144.19,144.15,5.5496]
[1723519991169,5.5478,144.2,144.15,5.5496]
[1723519991485,1.27463935,144.19,144.15,5.5496]
[1723519991679,5.5478,144.2,144.15,5.5496]
[1723519992169,5.5471,144.22,144.17,5.5489]
[1723519992373,20.0,144.21,144.15,6.2344]
[1723519992575,20.0,144.24,144.15,6.2344]
[1723519993387,0.25098,144.23,144.15,6.2344]
[1723519993694,73.9622,144.28,144.18,5.5482]
[1723519994195,5.5463,144.24,144.19,5.5481]
[1723519994897,73.9622,144.28,144.19,5.5481]
[1723519994898,5.5459,144.25,144.2,5.5477]
[1723519995075,5.5468,144.23,144.19,19.4181]
[1723519995280,20.0,144.28,144.19,13.87]
[1723519995479,5.5455,144.26,144.21,5.5473]
[1723519995682,63.17483544,144.31,144.18,15.5206]
[1723519995683,20.0,144.28,144.18,15.5206]
[1723519995990,33.8621,144.28,144.18,29.3918]
[1723519996487,35.13673935,144.28,144.18,29.3918]
[1723519996690,5.5471,144.22,144.18,29.3918]
[1723519996893,1.27463935,144.21,144.18,15.5206]
[1723519997275,5.5482,144.19,144.18,15.5206]
[1723519997685,5.5479,144.2,144.18,15.5206]
[1723519997899,5.5474,144.21,144.18,15.5206]
[1723519998200,20.12549,144.24,144.18,29.392]
[1723519998501,20.0,144.24,144.18,29.392]
[1723519998703,20.12549,144.26,144.18,29.392]
[1723519999006,5.5478,144.2,144.18,15.5206]
[1723519999611,5.5475,144.21,144.18,15.5206]
[1723519999799,5.5471,144.22,144.18,15.5206]
[1723519999996,0.37647,144.25,144.18,15.5206]
[1723520000189,0.25098,144.25,144.18,15.5206]
[1723520000538,1.27463935,144.24,144.18,15.5206]
[1723520000706,19.87647,144.25,144.18,15.5206]
[1723520000895,20.00196,144.25,144.18,15.5206]
[1723520001208,5.5463,144.24,144.19,5.5481]
[1723520001393,25.42237,144.25,144.2,5.5477]
[1723520001596,25.42237,144.25,144.18,15.5206]
[1723520001597,19.87647,144.25,144.22,5.5469]
[1723520001899,5.5459,144.25,144.2,5.5475]
[1723520002296,5.5456,144.26,144.21,5.5474]
[1723520002493,5.5453,144.27,144.22,5.5469]
[1723520003284,5.5446,144.29,144.24,5.5459]
[1723520003484,5.5455,144.26,144.21,5.5473]
[1723520003991,5.5459,144.25,144.21,5.5473]
[1723520004314,5.5456,144.26,144.21,5.5474]
[1723520005483,32.36,144.29,144.2,13.8693]
[1723520005701,20.0,144.28,144.21,1.38665001]
[1723520005891,25.5451,144.28,144.23,5.5465]
[1723520006219,5.5456,144.26,144.2,13.8693]
[1723520007312,5.5456,144.26,144.21,5.5471]
[1723520008784,5.5451,144.27,144.22,5.547]
[1723520008985,5.5455,144.26,144.2,19.4168]
[1723520009510,5.546,144.25,144.2,19.4168]
[1723520010813,5.5455,144.26,144.21,5.5474]
[1723520011315,5.5459,144.25,144.2,19.4171]
[1723520012912,5.5455,144.26,144.21,5.5472]
[1723520013116,5.5452,144.27,144.22,5.547]
[1723520013321,5.5452,144.27,144.19,6.0565]
[1723520013322,20.0,144.28,144.19,6.0565]
[1723520013519,20.0,144.3,144.19,38.4165]
[1723520013813,5.5444,144.29,144.24,19.4113]
[1723520014705,5.5459,144.25,144.21,13.8683]
[1723520014912,1.27463935,144.24,144.21,13.8683]
[1723520015088,5.5455,144.26,144.21,19.4156]
[1723520015292,5.5451,144.27,144.22,5.5469]
[1723520016713,33.63463935,144.29,144.2,5.5477]
[1723520016714,5.5462,144.25,144.2,5.5477]
[1723520016895,1.27463935,144.24,144.2,5.5477]
[1723520017102,1.27463935,144.23,144.2,5.5477]
[1723520017306,5.5455,144.26,144.21,5.5472]
[1723520017504,5.5459,144.25,144.2,5.5477]
[1723520018116,5.5456,144.26,144.21,5.5474]
[1723520018322,53.8607,144.3,144.23,5.5466]
[1723520018323,37.9047,144.29,144.23,5.5466]
[1723520018535,20.0,144.28,144.24,5.5462]
[1723520018830,25.5443,144.3,144.19,38.4165]
[1723520019323,20.0,144.3,144.24,13.8651]
[1723520019519,12.86161791,144.34,144.27,20.2971]
[1723520019520,1.27463935,144.34,144.27,20.2971]
[1723520019699,5.5437,144.31,144.27,20.2971]
[1723520020094,5.5437,144.31,144.27,6.4343]
[1723520020801,20.0,144.35,144.29,5.5442]
[1723520020802,5.5425,144.34,144.29,5.5442]
[1723520021526,32.36,144.35,144.27,6.4343]
[1723520021728,1.27463935,144.34,144.3,5.544]
[1723520021900,5.5425,144.34,144.29,5.544]
[1723520022407,5.5448,144.28,144.25,15.3084]
[1723520022740,32.36,144.31,144.25,15.3084]
[1723520022899,5.5444,144.29,144.25,15.3084]
[1723520023097,5.5436,144.31,144.26,5.5455]
[1723520023301,20.0,144.3,144.26,5.5455]
[1723520023599,20.0,144.3,144.27,5.5451]
[1723520023801,20.0,144.31,144.26,5.5454]
[1723520024233,25.5437,144.31,144.26,5.5454]
[1723520024525,20.0,144.31,144.25,15.3084]
[1723520024710,20.0,144.33,144.25,15.3084]
[1723520024711,5.5449,144.28,144.25,15.3084]
[1723520025218,5.5444,144.29,144.25,15.3084]
[1723520025403,5.544,144.3,144.25,20.8542]
[1723520025603,5.5443,144.29,144.25,15.3084]
[1723520025805,5.5452,144.27,144.22,5.5468]
[1723520026216,32.36,144.3,144.23,13.8666]
[1723520026404,20.0,144.29,144.23,13.8666]
[1723520026613,1.27463935,144.28,144.24,5.5462]
[1723520026824,5.5436,144.31,144.26,5.5454]
[1723520027006,20.0,144.3,144.26,13.8634]
[1723520027315,20.0,144.32,144.26,13.8634]
[1723520027500,5.544,144.3,144.26,13.8634]
[1723520027929,5.5449,144.28,144.23,5.5466]
[1723520028709,5.5453,144.27,144.22,19.4138]
[1723520029038,1.27463935,144.26,144.23,5.5465]
[1723520029327,1.27463935,144.25,144.21,6.6531]
[1723520029524,5.5455,144.26,144.21,12.2005]
[1723520029714,32.36,144.28,144.21,12.2005]
[1723520029715,5.5449,144.28,144.21,20.5208]
[1723520030024,5.5449,144.28,144.23,5.5466]
[1723520030213,5.5444,144.29,144.23,13.866]
[1723520031029,5.544,144.3,144.25,5.5457]
[1723520031231,20.0,144.29,144.25,5.5457]
[1723520031409,6.81943935,144.28,144.24,5.5462]
[1723520031609,6.81943935,144.28,144.23,19.4126]
[1723520031610,5.5448,144.28,144.23,19.4126]
[1723520031810,1.27463935,144.28,144.23,13.866]
[1723520032103,32.36,144.32,144.25,5.5458]
[1723520032322,20.0,144.31,144.25,5.5458]
[1723520032500,5.5444,144.29,144.24,5.5462]
[1723520032924,5.544,144.3,144.25,5.5458]
[1723520033532,25.5436,144.31,144.26,5.5454]
[1723520034033,5.5444,144.29,144.25,13.8642]
[1723520034328,25.5437,144.31,144.26,5.5454]
[1723520034832,25.5437,144.31,144.27,5.545]
[1723520035140,20.0,144.31,144.27,5.545]
[1723520035341,32.36,144.36,144.28,13.8618]
[1723520035527,20.0,144.35,144.29,5.5443]
[1723520035839,5.5425,144.34,144.29,5.5443]
[1723520036647,6.81753935,144.33,144.28,19.4065]
[1723520036843,5.5429,144.33,144.28,19.4065]
[1723520037219,6.81793935,144.32,144.28,13.8618]
[1723520037421,1.27463935,144.31,144.28,13.8618]
[1723520038153,1.27463935,144.31,144.28,19.4065]
[1723520038645,5.5428,144.34,144.28,19.4065]
[1723520038947,6.81753935,144.33,144.28,19.4065]
[1723520039349,1.27463935,144.32,144.28,19.4065]
[1723520039651,32.36,144.36,144.29,5.5443]
[1723520039815,32.36,144.34,144.27,15.5653]
[1723520040321,21.27463935,144.33,144.27,15.5653]
[1723520040543,1.27463935,144.32,144.27,15.5653]
[1723520040725,5.5444,144.29,144.27,15.5653]
[1723520041241,5.5447,144.28,144.27,15.5653]
[1723520041431,1.27463935,144.31,144.27,15.5653]
[1723520041432,5.5438,144.31,144.27,15.5653]
[1723520041833,6.81863935,144.3,144.27,15.5653]
[1723520042031,0.12549,144.31,144.25,6.1626]
[1723520042237,1.27463935,144.3,144.23,15.4046]
[1723520042450,20.50196,144.31,144.24,5.5463]
[1723520042651,5.5444,144.29,144.25,5.5458]
[1723520043238,5.544,144.3,144.25,5.5458]
[1723520043642,20.37647,144.31,144.24,5.5462]
[1723520043843,1.27463935,144.3,144.24,5.5462]
[1723520044159,6.81903935,144.29,144.24,5.5462]
[1723520044463,5.5441,144.3,144.25,5.5457]
[1723520044647,20.0,144.31,144.26,13.8632]
[1723520044958,5.5421,144.35,144.31,5.5435]
[1723520045628,5.5414,144.37,144.3,29.3757]
[1723520045835,13.8505,144.4,144.35,5.5419]
[1723520045836,12.49354128,144.4,144.35,5.5419]
[1723520046058,8.42148944,144.41,144.34,5.5423]
[1723520046059,5.5405,144.39,144.34,5.5423]
[1723520046252,5.54,144.41,144.36,13.854]
[1723520046453,1.27463935,144.4,144.3,15.5163]
[1723520046669,5.542,144.35,144.3,15.5163]
[1723520046971,5.5429,144.33,144.3,15.5163]
[1723520047253,1.27463935,144.32,144.3,15.5163]
[1723520047431,5.5425,144.34,144.3,15.5163]
[1723520047643,5.5421,144.35,144.3,21.0602]
[1723520047845,25.5421,144.35,144.3,21.0602]
[1723520048050,37.9012,144.38,144.33,5.5427]
[1723520048240,5.5409,144.38,144.33,5.5424]
[1723520049161,5.5405,144.4,144.35,5.542]
[1723520049351,1.27463935,144.39,144.3,29.3762]
[1723520049551,33.63463935,144.39,144.31,5.5435]
[1723520049880,5.5417,144.36,144.31,5.5434]
[1723520050061,32.36,144.39,144.31,5.5434]
[1723520050249,5.542,144.35,144.3,34.9201]
[1723520050445,32.36,144.35,144.3,15.5163]
[1723520050646,46.33949,144.37,144.3,15.5163]
[1723520050849,5.5425,144.34,144.3,15.5163]
[1723520051232,5.5428,144.33,144.3,15.5163]
[1723520051653,5.5432,144.32,144.3,15.5163]
[1723520051852,1.27463935,144.34,144.28,6.651]
[1723520052072,1.27463935,144.34,144.26,16.5478]
[1723520052073,32.36,144.31,144.26,16.5478]
[1723520052274,32.36,144.29,144.22,16.5478]
[1723520052642,5.5454,144.27,144.22,16.5478]
[1723520052839,5.5463,144.24,144.22,16.5478]
[1723520053052,20.0,144.28,144.18,16.5478]
[1723520053053,5.5467,144.23,144.18,16.5478]
[1723520053437,5.5476,144.21,144.18,16.5478]
[1723520053637,1.27463935,144.2,144.18,16.5478]
[1723520054049,32.36,144.23,144.14,16.1509]
[1723520054254,5.5482,144.19,144.14,21.7009]
[1723520054464,5.5478,144.2,144.15,5.5497]
[1723520054653,25.5474,144.21,144.15,5.5497]
[1723520054860,5.5474,144.21,144.16,5.5493]
[1723520055164,5.5481,144.2,144.15,5.5497]
[1723520055374,5.5481,144.2,144.14,21.701]
[1723520055567,5.5481,144.2,144.15,5.5495]
[1723520057857,5.5466,144.24,144.18,5.5484]
[1723520058156,20.0,144.23,144.18,5.5484]
[1723520058362,25.5468,144.23,144.18,5.5484]
[1723520058583,48.90148944,144.29,144.21,5.5472]
[1723520058881,5.5447,144.28,144.22,5.547]
[1723520059048,5.5452,144.27,144.22,5.547]
[1723520059580,55.61373935,144.31,144.21,29.128]
[1723520059581,5.5443,144.3,144.24,5.5459]
[1723520060074,40.48,144.35,144.26,13.8635]
[1723520060981,5.5429,144.33,144.28,5.5447]
[1723520061276,5.5418,144.36,144.31,5.5436]
[1723520061486,28.42148944,144.4,144.29,6.1497]
[1723520061648,13.8514,144.39,144.29,6.1497]
[1723520061845,5.542,144.36,144.3,5.5439]
[1723520062273,40.48,144.41,144.31,19.4022]
[1723520062457,5.5417,144.36,144.31,19.4022]
[1723520062946,5.5413,144.37,144.32,5.5432]
[1723520063153,40.48,144.41,144.31,13.8589]
[1723520063348,5.5408,144.39,144.33,5.5427]
[1723520063552,40.48,144.41,144.33,5.5427]
[1723520063553,5.5409,144.38,144.33,5.5427]
[1723520063950,5.5415,144.37,144.31,13.8589]
[1723520064151,41.75463935,144.41,144.31,13.8589]
[1723520064152,5.5421,144.35,144.31,13.8589]
[1723520064948,5.5417,144.36,144.31,13.8589]
[1723520066162,5.5417,144.36,144.31,19.4023]
[1723520066682,13.8515,144.39,144.3,15.012]
[1723520066986,5.5428,144.33,144.3,15.012]
[1723520067567,5.5424,144.35,144.3,20.5559]
[1723520068366,5.5413,144.37,144.31,5.5432]
[1723520068691,5.5421,144.35,144.3,20.5559]
[1723520069681,6.81713935,144.34,144.3,15.012]
[1723520069856,5.5425,144.34,144.3,15.012]
[1723520070273,5.5421,144.35,144.3,20.5558]
[1723520070478,25.5417,144.36,144.3,20.5559]
[1723520070692,25.5417,144.36,144.31,5.5435]
[1723520070872,54.3303,144.41,144.32,5.5431]
[1723520070873,5.5409,144.38,144.32,5.5431]
[1723520071179,5.5413,144.37,144.32,5.5431]
[1723520071399,5.542,144.35,144.3,28.8711]
[1723520071556,1.27463935,144.4,144.31,5.5435]
[1723520071758,1.27463935,144.39,144.31,5.5435]
[1723520071970,5.5424,144.35,144.3,28.8711]
[1723520072180,40.48,144.39,144.3,28.8711]
[1723520072381,20.0,144.38,144.32,5.5432]
[1723520072897,21.27463935,144.38,144.32,5.5432]
[1723520073299,20.0,144.38,144.32,5.5432]
[1723520073494,21.27463935,144.4,144.32,5.5432]
[1723520074000,46.0201,144.41,144.35,5.5417]
[1723520074225,15.12123935,144.44,144.34,5.5422]
[1723520074226,5.5405,144.39,144.34,5.5422]
[1723520074379,74.3266,144.44,144.3,15.012]
[1723520074380,1.27463935,144.38,144.3,15.012]
[1723520074742,40.48,144.39,144.3,15.012]
[1723520075006,60.48,144.36,144.26,6.1508]
[1723520075302,0.12549,144.34,144.26,22.7748]
[1723520075505,1.27463935,144.33,144.26,22.7748]
[1723520075704,0.25098,144.34,144.26,22.7748]
[1723520075705,1.27463935,144.32,144.26,22.7748]
[1723520076380,5.544,144.3,144.26,22.7748]
[1723520076706,5.5437,144.31,144.26,28.3202]
[1723520078303,40.48,144.33,144.26,22.7748]
[1723520078609,5.5433,144.32,144.26,22.7748]
[1723520078783,40.60549,144.3,144.22,21.8087]
[1723520078988,5.5458,144.26,144.22,21.8087]
[1723520079180,1.27463935,144.25,144.22,21.8087]
[1723520079374,40.48,144.3,144.22,21.8087]
[1723520079571,20.0,144.29,144.24,13.8656]
[1723520079799,21.27463935,144.31,144.24,13.8656]
[1723520079993,20.0,144.31,144.24,13.8656]
[1723520080193,1.27463935,144.3,144.27,5.545]
[1723520080403,5.5432,144.32,144.27,5.545]
[1723520080973,1.40012935,144.32,144.24,13.8656]
[1723520081201,5.5448,144.28,144.24,13.8656]
[1723520081417,5.5451,144.27,144.22,21.8087]
[1723520081585,6.82023935,144.26,144.22,21.8087]
[1723520081899,1.27463935,144.25,144.22,21.8087]
[1723520082280,55.61523935,144.3,144.22,15.3671]
[1723520082495,66.77659935,144.29,144.22,15.3671]
[1723520082887,5.546,144.25,144.22,15.3671]
[1723520083089,5.5453,144.27,144.22,20.914]
[1723520083804,5.5456,144.26,144.22,15.3671]
[1723520084879,5.5452,144.27,144.22,20.9141]
[1723520085090,5.5455,144.26,144.22,15.3671]
[1723520085286,5.5451,144.27,144.22,20.914]
[1723520085490,5.5455,144.26,144.22,20.914]
[1723520085697,5.5451,144.27,144.23,5.5466]
[1723520086003,5.5448,144.28,144.23,5.5466]
[1723520086205,5.5448,144.28,144.22,15.3671]
[1723520086206,26.81983935,144.27,144.22,20.9141]
[1723520086389,5.5455,144.26,144.22,20.9141]
[1723520086709,25.5452,144.27,144.22,20.9141]
[1723520086903,90.2652,144.34,144.23,13.8661]
[1723520087208,5.5448,144.28,144.23,19.4125]
[1723520087401,5.5448,144.28,144.24,5.5463]
[1723520088006,5.5448,144.28,144.23,19.4127]
[1723520088707,5.544,144.3,144.25,5.5458]
[1723520088909,5.5437,144.31,144.25,13.8642]
[1723520089114,54.3365,144.34,144.25,13.8642]
[1723520089115,5.544,144.3,144.26,5.5454]
[1723520089295,5.544,144.3,144.25,19.4099]
[1723520090390,40.48,144.34,144.26,6.598]
[1723520090714,5.5437,144.31,144.27,5.5451]
[1723520090891,5.5444,144.29,144.26,6.598]
[1723520091304,5.5441,144.3,144.26,6.598]
[1723520091526,5.5441,144.3,144.26,12.1435]
[1723520091816,5.5447,144.28,144.26,6.598]
[1723520092214,0.12549,144.33,144.26,6.598]
[1723520092424,20.37647,144.33,144.26,6.598]
[1723520092714,5.5443,144.3,144.26,6.598]
[1723520092915,20.37647,144.33,144.26,6.598]
[1723520093120,25.5429,144.33,144.28,5.5444]
[1723520093306,5.5436,144.31,144.27,13.8621]
[1723520093899,5.5432,144.32,144.27,19.4072]
[1723520095324,5.5437,144.31,144.27,19.4072]
[1723520096209,20.0,144.33,144.28,5.5447]
[1723520096422,20.0,144.33,144.29,5.5442]
[1723520096632,5.5427,144.34,144.29,5.5442]
[1723520096917,2.42985268,144.38,144.27,15.612]
[1723520097091,26.1422,144.39,144.27,15.612]
[1723520097092,77.0853,144.41,144.27,15.612]
[1723520097286,60.48,144.41,144.27,15.612]
[1723520097526,5.5417,144.36,144.31,19.4015]
[1723520097821,60.48,144.41,144.31,13.8582]
[1723520097989,5.5421,144.35,144.27,47.922]
[1723520098194,5.5425,144.34,144.29,5.544]
[1723520099013,5.542,144.35,144.3,5.5438]
[1723520099316,5.5417,144.36,144.31,5.5435]
[1723520099514,5.5417,144.36,144.32,5.5431]
[1723520099726,1.27463935,144.37,144.3,13.8593]
[1723520099905,32.31,144.36,144.29,5.5441]
[1723520100221,32.31,144.36,144.27,29.4745]
[1723520100222,20.0,144.35,144.28,5.5447]
[1723520100397,21.27463935,144.35,144.28,5.5447]
[1723520100600,21.27463935,144.35,144.27,15.612]
[1723520100601,33.71012935,144.34,144.27,15.612]
[1723520100797,5.544,144.3,144.27,15.612]
[1723520101104,20.0,144.33,144.27,21.1568]
[1723520101516,20.0,144.33,144.27,15.612]
[1723520101698,5.5445,144.29,144.27,15.612]
[1723520102098,5.544,144.3,144.27,15.612]
[1723520102313,5.5436,144.31,144.27,15.612]
[1723520102508,20.0,144.33,144.27,15.612]
[1723520102823,20.0,144.35,144.29,5.5443]
[1723520102998,0.12549,144.37,144.31,5.5433]
[1723520103317,40.43,144.38,144.29,13.8601]
[1723520103318,5.5417,144.36,144.29,13.8601]
[1723520103624,74.2778,144.43,144.34,5.5424]
[1723520103838,5.5409,144.38,144.33,19.3992]
[1723520104116,40.43,144.38,144.27,15.612]
[1723520104315,1.27463935,144.37,144.27,15.612]
[1723520104631,1.27463935,144.37,144.28,5.5447]
[1723520104806,5.5417,144.36,144.31,5.5433]
[1723520105328,5.5421,144.35,144.31,5.5433]
[1723520105629,54.2806,144.4,144.29,13.8603]
[1723520105823,65.0,144.39,144.29,13.8603]
[1723520106315,20.0,144.39,144.29,13.8603]
[1723520106523,20.0,144.39,144.31,13.8584]
[1723520107029,22.51732539,144.43,144.33,5.5428]
[1723520107030,5.5413,144.37,144.33,5.5428]
[1723520107321,5.5425,144.34,144.32,6.0621]
[1723520107533,5.5428,144.33,144.29,6.3848]
[1723520107826,13.8519,144.39,144.31,5.5435]
[1723520107995,13.8519,144.39,144.3,13.8593]
[1723520108193,60.43,144.38,144.3,13.8593]
[1723520108399,5.5425,144.34,144.3,13.8593]
[1723520108624,13.8538,144.37,144.29,6.3848]
[1723520108798,5.5425,144.34,144.29,11.929]
[1723520109134,5.543,144.33,144.29,6.3848]
[1723520109508,5.5432,144.32,144.29,6.3848]
[1723520109704,60.55549,144.38,144.27,15.612]
[1723520109705,13.8557,144.35,144.27,15.612]
[1723520109905,20.0,144.34,144.28,5.5447]
[1723520110122,5.5433,144.32,144.27,21.1571]
[1723520110342,6.81853935,144.31,144.27,15.612]
[1723520110645,6.81863935,144.3,144.27,15.612]
[1723520110940,5.5435,144.32,144.27,15.612]
[1723520111149,20.0,144.34,144.28,13.8612]
[1723520111352,5.5416,144.37,144.32,5.5432]
[1723520111523,44.14258714,144.41,144.3,13.8594]
[1723520111845,5.5421,144.35,144.3,13.8594]
[1723520112144,5.5417,144.36,144.3,13.8594]
[1723520112327,5.5417,144.36,144.31,5.5433]
[1723520112942,13.8541,144.37,144.27,15.612]
[1723520113123,5.5429,144.33,144.28,5.5444]
[1723520113441,20.0,144.36,144.3,5.5439]
[1723520113748,20.0,144.36,144.27,15.612]
[1723520113916,5.5436,144.31,144.27,15.612]
[1723520114114,41.70463935,144.35,144.27,15.612]
[1723520114345,5.544,144.3,144.27,15.612]
[1723520115244,40.43,144.35,144.27,29.4739]
[1723520115538,40.43,144.35,144.3,5.5439]
[1723520115539,20.0,144.34,144.3,5.5439]
[1723520115749,25.5424,144.34,144.29,19.4047]
[1723520116640,20.0,144.34,144.3,5.5439]
[1723520116849,40.43,144.41,144.31,13.8584]
[1723520117017,5.5405,144.39,144.34,5.5421]
[1723520117220,5.5402,144.4,144.35,22.1392]
[1723520117445,40.43,144.43,144.35,22.1392]
[1723520117624,5.5405,144.39,144.35,16.5972]
[1723520117830,5.5409,144.38,144.35,16.5972]
[1723520118038,5.5414,144.37,144.35,16.5972]
[1723520118243,5.5417,144.36,144.35,16.5972]
[1723520118423,5.5428,144.33,144.32,6.584]
[1723520118622,55.55653935,144.39,144.31,16.5972]
[1723520118623,5.5432,144.32,144.31,16.5972]
[1723520118826,20.0,144.38,144.28,6.584]
[1723520118827,40.55549,144.35,144.28,6.584]
[1723520119053,5.5437,144.31,144.28,6.584]
[1723520119241,5.5432,144.32,144.28,6.584]
[1723520119732,5.5432,144.32,144.28,12.1287]
[1723520120350,5.5425,144.34,144.29,19.4051]
[1723520120545,20.0,144.33,144.29,13.8608]
[1723520121136,20.12549,144.36,144.29,13.8608]
[1723520121333,1.27463935,144.35,144.28,6.584]
[1723520121843,20.0,144.36,144.28,6.584]
[1723520122145,5.5425,144.34,144.28,6.584]
[1723520122449,40.43,144.37,144.28,6.584]
[1723520122653,5.5416,144.37,144.32,5.5432]
[1723520123233,54.2806,144.4,144.34,15.6923]
[1723520123234,40.43,144.4,144.34,15.6923]
[1723520123429,1.27463935,144.39,144.34,15.6923]
[1723520123756,5.542,144.35,144.34,15.6923]
[1723520123957,5.5428,144.33,144.3,15.6923]
[1723520124252,5.5425,144.34,144.3,15.6923]
[1723520124623,1.27463935,144.36,144.3,21.2362]
[1723520124624,5.5421,144.35,144.3,21.2362]
[1723520124824,5.542,144.36,144.31,5.5435]
[1723520125452,5.5421,144.35,144.31,5.5435]
[1723520125745,5.5421,144.35,144.3,21.2362]
[1723520127240,0.12549,144.39,144.3,15.6923]
[1723520127434,40.43,144.41,144.3,15.6923]
[1723520127638,5.5406,144.39,144.32,13.8574]
[1723520128237,5.5398,144.41,144.34,13.8552]
[1723520128439,5.5398,144.41,144.37,15.5844]
[1723520128764,5.5401,144.4,144.37,15.5844]
[1723520128928,5.5398,144.41,144.37,15.5844]
[1723520129332,5.5401,144.4,144.37,15.5844]
[1723520129559,40.43,144.45,144.37,15.5844]
[1723520130057,5.5395,144.42,144.37,21.1257]
[1723520130245,5.5387,144.44,144.39,5.5404]
[1723520130558,5.5387,144.44,144.4,6.2341]
[1723520130767,40.43,144.48,144.4,6.2341]
[1723520130768,5.5394,144.42,144.4,6.2341]
[1723520131255,5.539,144.43,144.4,6.2341]
[1723520131474,40.43,144.48,144.4,6.2341]
[1723520131475,5.5385,144.45,144.4,6.2341]
[1723520132253,13.8443,144.47,144.4,6.2341]
[1723520132463,5.539,144.43,144.4,6.2341]
[1723520132640,5.5387,144.44,144.4,6.2341]
[1723520132849,5.5383,144.45,144.4,11.7741]
[1723520133757,5.5383,144.45,144.41,1.38473552]
[1723520134165,5.5383,144.45,144.41,6.92443552]
[1723520134343,5.5383,144.45,144.4,11.7742]